[Event "*** Titled Tuesday Blitz"]
[Site "Chess.com"]
[Date "2021.02.16"]
[Round "1"]
[White "marianokar"]
[Black "Grandelicious"]
[Result "0-1"]
[WhiteElo "2441"]
[BlackElo "2879"]
[TimeControl "180+1"]
[EndTime "10:09:51 PST"]
[Termination "Grandelicious won on time"]

1. d4 {[%clk 0:03:00.7]} 1... d5 {[%clk 0:02:58.8]} 2. c4 {[%clk 0:02:59.2]}
2... e6 {[%clk 0:02:58.4]} 3. Nc3 {[%clk 0:02:58.1]} 3... a6 {[%clk 0:02:57.7]}
4. cxd5 {[%clk 0:02:57.7]} 4... exd5 {[%clk 0:02:58.6]} 5. Bf4 {[%clk
0:02:57.9]} 5... Nf6 {[%clk 0:02:58.4]} 6. e3 {[%clk 0:02:58.1]} 6... c5 {[%clk
0:02:59]} 7. Bd3 {[%clk 0:02:53.7]} 7... cxd4 {[%clk 0:02:50.6]} 8. exd4 {[%clk
0:02:53.6]} 8... Nc6 {[%clk 0:02:51.5]} 9. Nge2 {[%clk 0:02:51.9]} 9... Bd6
{[%clk 0:02:50.4]} 10. Bg5 {[%clk 0:02:39.1]} 10... Be6 {[%clk 0:02:42.3]} 11.
h3 {[%clk 0:02:08.8]} 11... h6 {[%clk 0:02:32.5]} 12. Bh4 {[%clk 0:02:08.8]}
12... Be7 {[%clk 0:02:12.3]} 13. O-O {[%clk 0:01:59.2]} 13... O-O {[%clk
0:02:05.5]} 14. Rc1 {[%clk 0:01:54.3]} 14... Nh5 {[%clk 0:01:51.5]} 15. Bxe7
{[%clk 0:01:46.5]} 15... Qxe7 {[%clk 0:01:52.4]} 16. Bb1 {[%clk 0:01:19.5]}
16... Qh4 {[%clk 0:01:34.3]} 17. Qd3 {[%clk 0:01:17.2]} 17... g6 {[%clk
0:01:32.9]} 18. g4 {[%clk 0:00:44.7]} 18... Ng7 {[%clk 0:01:22.7]} 19. Kg2
{[%clk 0:00:41.9]} 19... f5 {[%clk 0:01:15.2]} 20. f3 {[%clk 0:00:40.9]} 20...
fxg4 {[%clk 0:01:11.2]} 21. fxg4 {[%clk 0:00:39.6]} 21... h5 {[%clk 0:01:11.7]}
22. Qg3 {[%clk 0:00:36]} 22... Qxg3+ {[%clk 0:00:44.5]} 23. Kxg3 {[%clk
0:00:36.9]} 23... hxg4 {[%clk 0:00:42.8]} 24. hxg4 {[%clk 0:00:36.9]} 24... g5
{[%clk 0:00:43]} 25. Rh1 {[%clk 0:00:32.4]} 25... Rf6 {[%clk 0:00:42.8]} 26.
Bh7+ {[%clk 0:00:31.5]} 26... Kf7 {[%clk 0:00:42.7]} 27. Rcf1 {[%clk 0:00:31.7]}
27... Ne8 {[%clk 0:00:39.8]} 28. Bc2 {[%clk 0:00:27.4]} 28... Rxf1 {[%clk
0:00:38.1]} 29. Rxf1+ {[%clk 0:00:27.1]} 29... Nf6 {[%clk 0:00:39]} 30. Bf5
{[%clk 0:00:24.7]} 30... Re8 {[%clk 0:00:39]} 31. Bxe6+ {[%clk 0:00:22.2]} 31...
Kxe6 {[%clk 0:00:39.9]} 32. Rf5 {[%clk 0:00:22.7]} 32... Rg8 {[%clk 0:00:37.3]}
33. a3 {[%clk 0:00:20.5]} 33... Ne7 {[%clk 0:00:35.1]} 34. Re5+ {[%clk
0:00:20.2]} 34... Kd6 {[%clk 0:00:35.7]} 35. Nc1 {[%clk 0:00:18]} 35... Nc6
{[%clk 0:00:28.6]} 36. Rf5 {[%clk 0:00:18.2]} 36... Rg6 {[%clk 0:00:28.7]} 37.
N1e2 {[%clk 0:00:17.5]} 37... Ne7 {[%clk 0:00:24.7]} 38. Re5 {[%clk 0:00:17.2]}
38... Rg7 {[%clk 0:00:25.1]} 39. b4 {[%clk 0:00:15.9]} 39... Nc6 {[%clk
0:00:16.2]} 40. Rf5 {[%clk 0:00:15.5]} 40... Ne4+ {[%clk 0:00:16.6]} 41. Nxe4+
{[%clk 0:00:15.1]} 41... dxe4 {[%clk 0:00:17.5]} 42. b5 {[%clk 0:00:14.2]} 42...
axb5 {[%clk 0:00:16.1]} 43. Rxb5 {[%clk 0:00:15.1]} 43... Rf7 {[%clk 0:00:16.7]}
44. Rxg5 {[%clk 0:00:14.8]} 44... Rf3+ {[%clk 0:00:16.8]} 45. Kg2 {[%clk
0:00:15.4]} 45... Rxa3 {[%clk 0:00:16.1]} 46. Nf4 {[%clk 0:00:14.2]} 46... Rf3
{[%clk 0:00:12.2]} 47. Rg6+ {[%clk 0:00:13.5]} 47... Kd7 {[%clk 0:00:11.6]} 48.
Rg7+ {[%clk 0:00:13.4]} 48... Kc8 {[%clk 0:00:11.3]} 49. Nd5 {[%clk 0:00:13.2]}
49... Nxd4 {[%clk 0:00:10]} 50. Nb6+ {[%clk 0:00:13.2]} 50... Kb8 {[%clk
0:00:10.2]} 51. Nd7+ {[%clk 0:00:12]} 51... Ka7 {[%clk 0:00:10.3]} 52. Nc5
{[%clk 0:00:12.7]} 52... e3 {[%clk 0:00:10.6]} 53. Rxb7+ {[%clk 0:00:12.3]}
53... Ka8 {[%clk 0:00:11]} 54. Re7 {[%clk 0:00:13]} 54... Rf2+ {[%clk
0:00:11.3]} 55. Kg3 {[%clk 0:00:12.3]} 55... Ne2+ {[%clk 0:00:10.7]} 56. Kh4
{[%clk 0:00:12.2]} 56... Rh2+ {[%clk 0:00:08.3]} 57. Kg5 {[%clk 0:00:12.2]}
57... Kb8 {[%clk 0:00:03.9]} 58. Rxe3 {[%clk 0:00:11]} 58... Kc7 {[%clk
0:00:04.8]} 59. Kf6 {[%clk 0:00:09.6]} 59... Kc6 {[%clk 0:00:04.9]} 60. Ne6
{[%clk 0:00:09.3]} 60... Rf2+ {[%clk 0:00:04.3]} 61. Kg6 {[%clk 0:00:09]} 61...
Kd5 {[%clk 0:00:04.6]} 62. g5 {[%clk 0:00:08.6]} 62... Kd6 {[%clk 0:00:05]} 63.
Ng7 {[%clk 0:00:08.6]} 63... Nd4 {[%clk 0:00:04.8]} 64. Rd3 {[%clk 0:00:07.4]}
64... Ke5 {[%clk 0:00:04.4]} 65. Rxd4 {[%clk 0:00:07.4]} 65... Kxd4 {[%clk
0:00:04.3]} 66. Nf5+ {[%clk 0:00:07.6]} 66... Ke5 {[%clk 0:00:04.6]} 67. Nh6
{[%clk 0:00:07.7]} 67... Ke6 {[%clk 0:00:04.9]} 68. Ng4 {[%clk 0:00:07.2]} 68...
Rg2 {[%clk 0:00:04.8]} 69. Nf6 {[%clk 0:00:07.4]} 69... Rg1 {[%clk 0:00:05.4]}
70. Nh5 {[%clk 0:00:07.4]} 70... Ra1 {[%clk 0:00:06.3]} 71. Nf6 {[%clk
0:00:07.6]} 71... Ra7 {[%clk 0:00:06.5]} 72. Nh5 {[%clk 0:00:06.7]} 72... Ke5
{[%clk 0:00:06.7]} 73. Nf6 {[%clk 0:00:05]} 73... Ra6 {[%clk 0:00:07.6]} 74. Kf7
{[%clk 0:00:04.3]} 74... Kf5 {[%clk 0:00:08.1]} 75. Nd7 {[%clk 0:00:03.3]} 75...
Kxg5 {[%clk 0:00:08.1]} 76. Ke7 {[%clk 0:00:04.2]} 76... Kf5 {[%clk 0:00:08.2]}
77. Nf8 {[%clk 0:00:04.3]} 77... Rh6 {[%clk 0:00:07]} 78. Nd7 {[%clk 0:00:03]}
78... Ra6 {[%clk 0:00:06.7]} 79. Kd8 {[%clk 0:00:02.2]} 79... Ra7 {[%clk
0:00:04.7]} 80. Nb8 {[%clk 0:00:01.1]} 80... Kf6 {[%clk 0:00:04]} 81. Kc8 {[%clk
0:00:01.6]} 81... Ke6 {[%clk 0:00:03.8]} 82. Nc6 {[%clk 0:00:01.8]} 82... Rh7
{[%clk 0:00:03.8]} 83. Nd8+ {[%clk 0:00:01.6]} 83... Kd6 {[%clk 0:00:04.3]} 84.
Nb7+ {[%clk 0:00:01.8]} 84... Kc6 {[%clk 0:00:04.8]} 85. Nd8+ {[%clk 0:00:02.5]}
85... Kb6 {[%clk 0:00:05.2]} 86. Ne6 {[%clk 0:00:02.6]} 86... Re7 {[%clk
0:00:05.6]} 87. Nd8 {[%clk 0:00:02.5]} 87... Rc7+ {[%clk 0:00:05.8]} 88. Kb8
{[%clk 0:00:02.4]} 88... Rc4 {[%clk 0:00:06]} 89. Nb7 {[%clk 0:00:02.3]} 89...
Re4 {[%clk 0:00:05.7]} 90. Nd8 {[%clk 0:00:02.5]} 90... Re8 {[%clk 0:00:05.8]}
91. Kc8 {[%clk 0:00:03.2]} 91... Re7 {[%clk 0:00:06.4]} 92. Kb8 {[%clk 0:00:01]}
92... Rc7 {[%clk 0:00:06.6]} 0-1

[Event "*** Titled Tuesday Blitz"]
[Site "Chess.com"]
[Date "2021.02.16"]
[Round "1"]
[White "ellennilssen"]
[Black "Rakesh"]
[Result "1/2-1/2"]
[WhiteElo "2226"]
[BlackElo "2530"]
[TimeControl "180+1"]
[EndTime "10:11:35 PST"]
[Termination "Game drawn - insufficient material"]

1. c4 {[%clk 0:02:59.9]} 1... Nf6 {[%clk 0:02:59.8]} 2. Nc3 {[%clk 0:02:59.5]}
2... e5 {[%clk 0:02:59.8]} 3. g3 {[%clk 0:02:59.6]} 3... Nc6 {[%clk 0:02:58.8]}
4. Bg2 {[%clk 0:03:00]} 4... g6 {[%clk 0:02:57.9]} 5. d3 {[%clk 0:02:56.3]} 5...
Bg7 {[%clk 0:02:58.2]} 6. Nf3 {[%clk 0:02:56.2]} 6... d6 {[%clk 0:02:58.7]} 7.
O-O {[%clk 0:02:56.4]} 7... O-O {[%clk 0:02:59.2]} 8. b3 {[%clk 0:02:55.8]} 8...
Be6 {[%clk 0:02:59.8]} 9. Bb2 {[%clk 0:02:55.9]} 9... Qd7 {[%clk 0:03:00.2]} 10.
Nd5 {[%clk 0:02:51.4]} 10... Nh5 {[%clk 0:02:59.1]} 11. e4 {[%clk 0:02:38.2]}
11... f5 {[%clk 0:02:55.8]} 12. Ng5 {[%clk 0:02:36.3]} 12... fxe4 {[%clk
0:02:06]} 13. Nxe6 {[%clk 0:02:25.4]} 13... Qxe6 {[%clk 0:02:05.5]} 14. Nxc7
{[%clk 0:02:21.5]} 14... Qd7 {[%clk 0:02:05.1]} 15. Nxa8 {[%clk 0:02:21.1]}
15... exd3 {[%clk 0:02:01.5]} 16. Qxd3 {[%clk 0:01:56.8]} 16... Rxa8 {[%clk
0:02:00.6]} 17. Rad1 {[%clk 0:01:55.3]} 17... Rd8 {[%clk 0:01:59.5]} 18. Ba3
{[%clk 0:01:52.2]} 18... Nd4 {[%clk 0:01:56.9]} 19. Bb2 {[%clk 0:01:46.9]} 19...
Kh8 {[%clk 0:01:51.7]} 20. Bxd4 {[%clk 0:01:41.1]} 20... exd4 {[%clk 0:01:52.6]}
21. Bd5 {[%clk 0:01:38.6]} 21... Rf8 {[%clk 0:01:51.2]} 22. f4 {[%clk
0:01:38.3]} 22... Nf6 {[%clk 0:01:49.9]} 23. Qxd4 {[%clk 0:01:33.2]} 23... Ng4
{[%clk 0:01:49.8]} 24. Qd3 {[%clk 0:01:28.9]} 24... h5 {[%clk 0:01:49]} 25. Rde1
{[%clk 0:01:27.8]} 25... Kh7 {[%clk 0:01:44.7]} 26. Be6 {[%clk 0:01:24.9]} 26...
Qc6 {[%clk 0:01:43.3]} 27. Bxg4 {[%clk 0:01:23.3]} 27... hxg4 {[%clk 0:01:44.2]}
28. Re6 {[%clk 0:01:22.4]} 28... Bf6 {[%clk 0:01:37.1]} 29. f5 {[%clk
0:01:19.5]} 29... g5 {[%clk 0:01:37]} 30. Rfe1 {[%clk 0:01:18.1]} 30... Kg7
{[%clk 0:01:33.9]} 31. Qxd6 {[%clk 0:01:15.3]} 31... Qf3 {[%clk 0:01:28.3]} 32.
Re7+ {[%clk 0:01:09.2]} 32... Kh6 {[%clk 0:01:15.1]} 33. Re8 {[%clk 0:00:45.2]}
33... Rf7 {[%clk 0:01:08.2]} 34. Qd5 {[%clk 0:00:24.5]} 34... Qxd5 {[%clk
0:01:00.9]} 35. cxd5 {[%clk 0:00:25.4]} 35... Bd4+ {[%clk 0:01:01.8]} 36. Kg2
{[%clk 0:00:25.1]} 36... Rxf5 {[%clk 0:01:02.7]} 37. Rf1 {[%clk 0:00:24.9]}
37... Rxd5 {[%clk 0:01:01.3]} 38. Re6+ {[%clk 0:00:22.6]} 38... Kg7 {[%clk
0:01:00.7]} 39. Re7+ {[%clk 0:00:23.2]} 39... Kg6 {[%clk 0:01:00.3]} 40. Rxb7
{[%clk 0:00:22.6]} 40... Bb6 {[%clk 0:00:59.4]} 41. Rbf7 {[%clk 0:00:15.5]}
41... Rd2+ {[%clk 0:00:59.6]} 42. Kh1 {[%clk 0:00:16.2]} 42... Bd4 {[%clk
0:00:57.9]} 43. Rd7 {[%clk 0:00:14.8]} 43... a5 {[%clk 0:00:56.7]} 44. Rd5
{[%clk 0:00:14.3]} 44... Kh6 {[%clk 0:00:51.1]} 45. a3 {[%clk 0:00:13.3]} 45...
Kh5 {[%clk 0:00:48.9]} 46. b4 {[%clk 0:00:13.4]} 46... axb4 {[%clk 0:00:48.6]}
47. axb4 {[%clk 0:00:14.3]} 47... Rd3 {[%clk 0:00:32]} 48. b5 {[%clk 0:00:13.8]}
48... Rb3 {[%clk 0:00:31.9]} 49. Rxd4 {[%clk 0:00:13.6]} 49... Rxb5 {[%clk
0:00:32.4]} 50. Rd8 {[%clk 0:00:13.6]} 50... Rb7 {[%clk 0:00:32.2]} 51. Rfd1
{[%clk 0:00:13.8]} 51... Rb6 {[%clk 0:00:30]} 52. R1d6 {[%clk 0:00:13.8]} 52...
Rb1+ {[%clk 0:00:29.7]} 53. Kg2 {[%clk 0:00:13.1]} 53... Rg1+ {[%clk 0:00:28.7]}
54. Kf2 {[%clk 0:00:12.8]} 54... Rf1+ {[%clk 0:00:22.3]} 55. Ke3 {[%clk
0:00:13.2]} 55... Re1+ {[%clk 0:00:21.2]} 56. Kd4 {[%clk 0:00:13.4]} 56... Rd1+
{[%clk 0:00:18.8]} 57. Ke5 {[%clk 0:00:13.7]} 57... Re1+ {[%clk 0:00:18.5]} 58.
Kf6 {[%clk 0:00:14.3]} 58... Rf1+ {[%clk 0:00:18.8]} 59. Ke7 {[%clk 0:00:14.4]}
59... Rf7+ {[%clk 0:00:18.8]} 60. Ke6 {[%clk 0:00:12.5]} 60... Rf2 {[%clk
0:00:18.9]} 61. Rh8+ {[%clk 0:00:11.7]} 61... Kg6 {[%clk 0:00:19]} 62. Kd5+
{[%clk 0:00:11.8]} 62... Kg7 {[%clk 0:00:18.8]} 63. Rhd8 {[%clk 0:00:11.6]}
63... Rxh2 {[%clk 0:00:18.7]} 64. R8d7+ {[%clk 0:00:11.6]} 64... Kg8 {[%clk
0:00:18.6]} 65. Rc6 {[%clk 0:00:12.5]} 65... Rd2+ {[%clk 0:00:18]} 66. Ke6
{[%clk 0:00:13.2]} 66... Re2+ {[%clk 0:00:18.5]} 67. Kd6 {[%clk 0:00:13.9]}
67... Rd2+ {[%clk 0:00:17.3]} 68. Kc7 {[%clk 0:00:14.4]} 68... Rb2 {[%clk
0:00:14.6]} 69. Rb6 {[%clk 0:00:14.5]} 69... Rc2+ {[%clk 0:00:14.5]} 70. Kb8
{[%clk 0:00:12.6]} 70... Kf8 {[%clk 0:00:14]} 71. Rh6 {[%clk 0:00:11.5]} 71...
Kg8 {[%clk 0:00:12.6]} 72. Rc7 {[%clk 0:00:11.3]} 72... Rb2+ {[%clk 0:00:12.4]}
73. Kc8 {[%clk 0:00:12]} 73... Rd2 {[%clk 0:00:12.3]} 74. Rhh7 {[%clk
0:00:10.7]} 74... Rd3 {[%clk 0:00:11.5]} 75. Rhg7+ {[%clk 0:00:10.8]} 75... Kh8
{[%clk 0:00:11.8]} 76. Rxg5 {[%clk 0:00:10.7]} 76... Rd8+ {[%clk 0:00:11.6]} 77.
Kb7 {[%clk 0:00:09.1]} 77... Rb8+ {[%clk 0:00:12.1]} 78. Kc6 {[%clk 0:00:07.6]}
78... Rb6+ {[%clk 0:00:12.6]} 79. Kd5 {[%clk 0:00:08]} 79... Rb5+ {[%clk
0:00:12.8]} 80. Ke4 {[%clk 0:00:08.1]} 80... Rxg5 {[%clk 0:00:12.7]} 81. Kf4
{[%clk 0:00:08.6]} 81... Rb5 {[%clk 0:00:11.7]} 82. Kxg4 {[%clk 0:00:08.5]}
82... Rb4+ {[%clk 0:00:12.2]} 83. Kf5 {[%clk 0:00:08.8]} 83... Rb5+ {[%clk
0:00:13.1]} 84. Kf4 {[%clk 0:00:08.4]} 84... Rb6 {[%clk 0:00:14]} 85. g4 {[%clk
0:00:08.7]} 85... Rb5 {[%clk 0:00:14.1]} 86. g5 {[%clk 0:00:09]} 86... Kg8
{[%clk 0:00:14.6]} 87. g6 {[%clk 0:00:08.7]} 87... Ra5 {[%clk 0:00:14.2]} 88.
Rf7 {[%clk 0:00:07.4]} 88... Rb5 {[%clk 0:00:14.3]} 89. Rf5 {[%clk 0:00:07.8]}
89... Rb1 {[%clk 0:00:13.9]} 90. Kg5 {[%clk 0:00:08.3]} 90... Rb3 {[%clk
0:00:11.3]} 91. Ra5 {[%clk 0:00:07.9]} 91... Kg7 {[%clk 0:00:10.2]} 92. Ra7+
{[%clk 0:00:07.7]} 92... Kg8 {[%clk 0:00:10.8]} 93. Rc7 {[%clk 0:00:04]} 93...
Rb5+ {[%clk 0:00:10.8]} 94. Kh6 {[%clk 0:00:04.2]} 94... Rb8 {[%clk 0:00:10.6]}
95. Rg7+ {[%clk 0:00:04.3]} 95... Kh8 {[%clk 0:00:10.6]} 96. Rh7+ {[%clk
0:00:04.8]} 96... Kg8 {[%clk 0:00:11.3]} 97. Rc7 {[%clk 0:00:04.8]} 97... Ra8
{[%clk 0:00:11.4]} 98. Rg7+ {[%clk 0:00:03.3]} 98... Kh8 {[%clk 0:00:11.3]} 99.
Rb7 {[%clk 0:00:03.9]} 99... Kg8 {[%clk 0:00:11.5]} 100. g7 {[%clk 0:00:04.3]}
100... Ra6+ {[%clk 0:00:11.3]} 101. Kg5 {[%clk 0:00:04.9]} 101... Ra5+ {[%clk
0:00:12.1]} 102. Kf4 {[%clk 0:00:05.1]} 102... Ra6 {[%clk 0:00:12.4]} 103. Ke5
{[%clk 0:00:05.3]} 103... Rg6 {[%clk 0:00:12.7]} 104. Kf5 {[%clk 0:00:05.5]}
104... Rg1 {[%clk 0:00:13.1]} 105. Kf4 {[%clk 0:00:04.7]} 105... Rf1+ {[%clk
0:00:11.4]} 106. Ke3 {[%clk 0:00:04.8]} 106... Rg1 {[%clk 0:00:12.3]} 107. Kf2
{[%clk 0:00:05]} 107... Rg6 {[%clk 0:00:12.8]} 108. Kf3 {[%clk 0:00:05.3]}
108... Re6 {[%clk 0:00:12.9]} 109. Kf4 {[%clk 0:00:05.7]} 109... Rc6 {[%clk
0:00:13.1]} 110. Ke5 {[%clk 0:00:05.9]} 110... Kh7 {[%clk 0:00:13.5]} 111. Kd5
{[%clk 0:00:06.3]} 111... Rg6 {[%clk 0:00:13.3]} 112. Rc7 {[%clk 0:00:06.3]}
112... Rg5+ {[%clk 0:00:13.3]} 113. Ke6 {[%clk 0:00:06.4]} 113... Rg6+ {[%clk
0:00:09.7]} 114. Kf5 {[%clk 0:00:06.9]} 114... Rg1 {[%clk 0:00:09.8]} 115. g8=Q+
{[%clk 0:00:05.3]} 115... Kxg8 {[%clk 0:00:09.4]} 116. Rc8+ {[%clk 0:00:05.6]}
116... Kf7 {[%clk 0:00:09.7]} 117. Rc7+ {[%clk 0:00:06.1]} 117... Ke8 {[%clk
0:00:10.2]} 118. Ra7 {[%clk 0:00:06.3]} 118... Rf1+ {[%clk 0:00:09.9]} 119. Kg4
{[%clk 0:00:06.8]} 119... Rd1 {[%clk 0:00:10.2]} 120. Kf3 {[%clk 0:00:07.1]}
120... Rd5 {[%clk 0:00:09.6]} 121. Ra8+ {[%clk 0:00:07.5]} 121... Ke7 {[%clk
0:00:09.1]} 122. Ra7+ {[%clk 0:00:08]} 122... Ke6 {[%clk 0:00:09.5]} 123. Rh7
{[%clk 0:00:08.2]} 123... Rd3+ {[%clk 0:00:09.3]} 124. Ke2 {[%clk 0:00:08.7]}
124... Ra3 {[%clk 0:00:09.9]} 125. Rh6+ {[%clk 0:00:08.9]} 125... Kf5 {[%clk
0:00:10.4]} 126. Rb6 {[%clk 0:00:08.2]} 126... Ke4 {[%clk 0:00:10.7]} 127. Rb4+
{[%clk 0:00:08.3]} 127... Ke5 {[%clk 0:00:10.5]} 128. Rh4 {[%clk 0:00:08.2]}
128... Ra2+ {[%clk 0:00:10.3]} 129. Ke3 {[%clk 0:00:08.3]} 129... Ra3+ {[%clk
0:00:11.2]} 130. Ke2 {[%clk 0:00:08.7]} 130... Rg3 {[%clk 0:00:11.4]} 131. Rh5+
{[%clk 0:00:08.4]} 131... Kf4 {[%clk 0:00:11.8]} 132. Rh4+ {[%clk 0:00:08.4]}
132... Kf5 {[%clk 0:00:12.2]} 133. Rh5+ {[%clk 0:00:08.7]} 133... Ke4 {[%clk
0:00:12.7]} 134. Rh4+ {[%clk 0:00:08.9]} 134... Kf5 {[%clk 0:00:13.1]} 135. Rh5+
{[%clk 0:00:09.1]} 135... Kg4 {[%clk 0:00:13.8]} 136. Ra5 {[%clk 0:00:09]}
136... Rb3 {[%clk 0:00:14]} 137. Ra4+ {[%clk 0:00:09]} 137... Kf5 {[%clk
0:00:14.3]} 138. Ra5+ {[%clk 0:00:09.4]} 138... Ke4 {[%clk 0:00:14.8]} 139. Ra4+
{[%clk 0:00:09.9]} 139... Kd5 {[%clk 0:00:15.3]} 140. Ra5+ {[%clk 0:00:10.3]}
140... Kd6 {[%clk 0:00:15.9]} 141. Ra6+ {[%clk 0:00:10.3]} 141... Kc5 {[%clk
0:00:16.3]} 142. Ra5+ {[%clk 0:00:10.7]} 142... Rb5 {[%clk 0:00:16.6]} 143.
Rxb5+ {[%clk 0:00:10.6]} 143... Kxb5 {[%clk 0:00:17.5]} 1/2-1/2

[Event "*** Titled Tuesday Blitz"]
[Site "Chess.com"]
[Date "2021.02.16"]
[Round "2"]
[White "Markov_Mikhail"]
[Black "lolo9292"]
[Result "1-0"]
[WhiteElo "2690"]
[BlackElo "2441"]
[TimeControl "180+1"]
[EndTime "10:13:36 PST"]
[Termination "Markov_Mikhail won by resignation"]

1. c4 {[%clk 0:03:00.9]} 1... e6 {[%clk 0:02:58.9]} 2. Nf3 {[%clk 0:03:01]} 2...
d5 {[%clk 0:02:58.7]} 3. g3 {[%clk 0:03:01.9]} 3... c5 {[%clk 0:02:57.7]} 4. Bg2
{[%clk 0:02:59.7]} 4... dxc4 {[%clk 0:02:58.2]} 5. Qa4+ {[%clk 0:02:58.7]} 5...
Bd7 {[%clk 0:02:58.2]} 6. Qxc4 {[%clk 0:02:59.2]} 6... Bc6 {[%clk 0:02:58.7]} 7.
O-O {[%clk 0:02:59.8]} 7... Nd7 {[%clk 0:02:58.7]} 8. d3 {[%clk 0:03:00.1]} 8...
Ngf6 {[%clk 0:02:58.4]} 9. b3 {[%clk 0:03:00.5]} 9... Bd6 {[%clk 0:02:55.8]} 10.
Bb2 {[%clk 0:03:00.7]} 10... O-O {[%clk 0:02:55.8]} 11. Nbd2 {[%clk 0:03:01.2]}
11... Nb6 {[%clk 0:02:54.6]} 12. Qc2 {[%clk 0:03:00.3]} 12... Nbd5 {[%clk
0:02:54.7]} 13. a3 {[%clk 0:03:00.7]} 13... Rc8 {[%clk 0:02:53.3]} 14. e4 {[%clk
0:03:00.9]} 14... Nb4 {[%clk 0:02:48.3]} 15. axb4 {[%clk 0:03:00.7]} 15... cxb4
{[%clk 0:02:49.2]} 16. Qd1 {[%clk 0:02:56.6]} 16... Be7 {[%clk 0:02:48.5]} 17.
Rxa7 {[%clk 0:02:55]} 17... Qxd3 {[%clk 0:02:46.6]} 18. Ne5 {[%clk 0:02:49.7]}
18... Qb5 {[%clk 0:02:42.9]} 19. Ndc4 {[%clk 0:02:46.6]} 19... Rcd8 {[%clk
0:02:37.9]} 20. Qb1 {[%clk 0:02:45.9]} 20... Bc5 {[%clk 0:02:37.1]} 21. Ra5
{[%clk 0:02:45.7]} 21... Qxa5 {[%clk 0:02:32]} 22. Nxa5 {[%clk 0:02:46.6]} 22...
Bxe4 {[%clk 0:02:32]} 23. Bxe4 {[%clk 0:02:46.2]} 1-0

[Event "*** Titled Tuesday Blitz"]
[Site "Chess.com"]
[Date "2021.02.16"]
[Round "2"]
[White "Jospem"]
[Black "LawrenceTrent"]
[Result "1-0"]
[WhiteElo "3021"]
[BlackElo "2596"]
[TimeControl "180+1"]
[EndTime "10:13:55 PST"]
[Termination "Jospem won by resignation"]

1. e4 {[%clk 0:03:00.9]} 1... e5 {[%clk 0:02:56.9]} 2. Nf3 {[%clk 0:03:01.1]}
2... Nc6 {[%clk 0:02:56.5]} 3. Bb5 {[%clk 0:03:01.4]} 3... a6 {[%clk 0:02:56.6]}
4. Ba4 {[%clk 0:03:01.9]} 4... Nf6 {[%clk 0:02:56.7]} 5. O-O {[%clk 0:03:01.9]}
5... Bc5 {[%clk 0:02:56.9]} 6. Bxc6 {[%clk 0:02:54.2]} 6... dxc6 {[%clk
0:02:55.9]} 7. d3 {[%clk 0:02:55.1]} 7... Nd7 {[%clk 0:02:54.7]} 8. Be3 {[%clk
0:02:54.8]} 8... Bd6 {[%clk 0:02:54.3]} 9. Nbd2 {[%clk 0:02:54.8]} 9... O-O
{[%clk 0:02:54.2]} 10. c3 {[%clk 0:02:55]} 10... c5 {[%clk 0:02:53.9]} 11. h3
{[%clk 0:02:47.8]} 11... b6 {[%clk 0:02:53]} 12. d4 {[%clk 0:02:47.2]} 12... Bb7
{[%clk 0:02:48]} 13. d5 {[%clk 0:02:44]} 13... f5 {[%clk 0:02:44.3]} 14. exf5
{[%clk 0:02:18.6]} 14... Bxd5 {[%clk 0:02:35.9]} 15. Ng5 {[%clk 0:02:18.8]}
15... Rxf5 {[%clk 0:02:30.5]} 16. Nde4 {[%clk 0:02:18.7]} 16... Nf6 {[%clk
0:02:28.6]} 17. Nxf6+ {[%clk 0:02:14.3]} 1-0

[Event "*** Titled Tuesday Blitz"]
[Site "Chess.com"]
[Date "2021.02.16"]
[Round "2"]
[White "platy3"]
[Black "Emeraldddd"]
[Result "1-0"]
[WhiteElo "2852"]
[BlackElo "2528"]
[TimeControl "180+1"]
[EndTime "10:14:24 PST"]
[Termination "platy3 won by resignation"]

1. Nf3 {[%clk 0:02:35.6]} 1... Nf6 {[%clk 0:02:58.7]} 2. c4 {[%clk 0:02:35.9]}
2... g6 {[%clk 0:02:58.8]} 3. g3 {[%clk 0:02:32.3]} 3... Bg7 {[%clk 0:02:58.9]}
4. Bg2 {[%clk 0:02:33.2]} 4... O-O {[%clk 0:02:59.5]} 5. O-O {[%clk 0:02:34.1]}
5... d6 {[%clk 0:03:00.1]} 6. Nc3 {[%clk 0:02:31.3]} 6... Nc6 {[%clk 0:02:58.2]}
7. d3 {[%clk 0:02:31]} 7... e5 {[%clk 0:02:55.5]} 8. Rb1 {[%clk 0:02:30.9]} 8...
Be6 {[%clk 0:02:52.9]} 9. Bg5 {[%clk 0:02:28.7]} 9... h6 {[%clk 0:02:52.9]} 10.
Bxf6 {[%clk 0:02:28.9]} 10... Bxf6 {[%clk 0:02:53.4]} 11. b4 {[%clk 0:02:29.6]}
11... Rb8 {[%clk 0:02:46.8]} 12. b5 {[%clk 0:02:25.4]} 12... Ne7 {[%clk
0:02:46.7]} 13. Nd2 {[%clk 0:02:23.5]} 13... c6 {[%clk 0:02:42.7]} 14. Qa4
{[%clk 0:02:23.3]} 14... Qc7 {[%clk 0:02:22.9]} 15. Rfc1 {[%clk 0:02:19]} 15...
Ra8 {[%clk 0:02:21.2]} 16. Qa3 {[%clk 0:02:17.4]} 16... Qd7 {[%clk 0:02:19.2]}
17. Nde4 {[%clk 0:02:16.9]} 17... Bg7 {[%clk 0:02:16.1]} 18. Qxd6 {[%clk
0:02:16.3]} 18... Qc8 {[%clk 0:02:11.6]} 19. Qxe7 {[%clk 0:02:15.1]} 19... Re8
{[%clk 0:02:10.4]} 20. Nf6+ {[%clk 0:02:12.8]} 1-0

[Event "*** Titled Tuesday Blitz"]
[Site "Chess.com"]
[Date "2021.02.16"]
[Round "2"]
[White "PotapovaM"]
[Black "andrzej"]
[Result "1-0"]
[WhiteElo "2607"]
[BlackElo "2337"]
[TimeControl "180+1"]
[EndTime "10:14:45 PST"]
[Termination "PotapovaM won by resignation"]

1. e4 {[%clk 0:03:00.9]} 1... c5 {[%clk 0:02:57.9]} 2. Nf3 {[%clk 0:03:01.2]}
2... e6 {[%clk 0:02:58]} 3. b3 {[%clk 0:02:56]} 3... b6 {[%clk 0:02:50]} 4. Bb2
{[%clk 0:02:40.5]} 4... Bb7 {[%clk 0:02:49.8]} 5. Nc3 {[%clk 0:02:40.5]} 5...
Nf6 {[%clk 0:02:42.2]} 6. Qe2 {[%clk 0:02:28.5]} 6... d6 {[%clk 0:02:22.9]} 7.
g3 {[%clk 0:02:22.7]} 7... Nc6 {[%clk 0:02:21.6]} 8. Bg2 {[%clk 0:02:21.8]} 8...
e5 {[%clk 0:02:21.6]} 9. O-O {[%clk 0:02:13]} 9... Be7 {[%clk 0:02:21.5]} 10.
Nd5 {[%clk 0:02:01.9]} 10... Nxd5 {[%clk 0:02:20.8]} 11. exd5 {[%clk 0:02:01.9]}
11... Nd4 {[%clk 0:02:14.5]} 12. Bxd4 {[%clk 0:02:00.6]} 12... cxd4 {[%clk
0:02:13.5]} 13. Rfe1 {[%clk 0:01:47.3]} 13... Bxd5 {[%clk 0:02:06.6]} 14. Qb5+
{[%clk 0:01:46.6]} 1-0